Cogmind - Beta 13 @@@ ROGUE MODE // 2024.05.14 @ 23:23:22 Player: McFluffinkins Result: Destroyed by 7B-OKH(R) with Subdweller Shrapnel Launcher Performance ------------- Evolutions (0) 0 Regions Visited (3) 600 Robots Destroyed (24) 120 Value Destroyed (370) 370 Prototype IDs (2) 40 Alien Tech Used (0) 0 Bonus (0) 0 TOTAL SCORE: 1130 Bonus ------- None Cogmind --------- Core Integrity 0/250 Matter 300/300 Energy 127/150 System Corruption 0% Temperature Cool (0) Movement Core (600) Ox11 Location -10/Subcaves Parts ------- > --- POWER (1) -------- Light Angular Momentum Engine > --- PROPULSION (2) --- (None) > --- UTILITY (2) ------ Large Storage Unit > --- WEAPON (2) ------- Beamcaster > --- INVENTORY (15) --- Light Treads Light Treads Flight Unit Flight Unit Flight Unit Huge Storage Unit Experimental Sensor Array Signal Interpreter Targeting Computer Grenade Launcher Grenade Launcher Ripper Peak State ------------ > --- POWER ------------ Light Angular Momentum Engine > --- PROPULSION ------- Carbon-fiber Leg Carbon-fiber Leg > --- UTILITY ---------- Improved Heat Sink Large Storage Unit > --- WEAPON ----------- Beamcaster Beam Cannon > --- INVENTORY -------- Light Treads Light Treads Flight Unit Flight Unit Flight Unit Huge Storage Unit Experimental Sensor Array Signal Interpreter Targeting Computer Grenade Launcher Grenade Launcher Ripper [Rating: 23] Favorites ----------- Power Light Ion Engine Engine Light Ion Engine Propulsion Aluminum Leg Treads Light Treads Leg Aluminum Leg Utility Large Storage Unit Device Improved Heat Sink Storage Large Storage Unit Weapon Beam Cannon Energy Gun Small Laser Energy Cannon Beam Cannon Ballistic Gun Assault Rifle Build | -11 -10 -10 -10 ------- Run | Yrd Mat Min Sub Slots Evolved . | . . . . Power . | . . . . Propulsion . | . . . . Utility . | . . . . Weapon . | . . . . Parts Attached 24 | 6 8 8 2 Power 5 | 1 1 2 1 Engine 5 | 1 1 2 1 Core . | . . . . Reactor . | . . . . Propulsion 9 | 2 3 4 . Treads 3 | . 1 2 . Leg 6 | 2 2 2 . Wheel . | . . . . Hover . | . . . . Flight . | . . . . Utility 3 | 1 2 . . Device 1 | . 1 . . Storage 2 | 1 1 . . Processor . | . . . . Hackware . | . . . . Protection . | . . . . Artifact . | . . . . Weapon 7 | 2 2 2 1 Energy Gun 4 | 1 1 1 1 Energy Cannon 2 | . 1 1 . Ballistic Gun 1 | 1 . . . Ballistic Cannon . | . . . . Launcher . | . . . . Special Weapon . | . . . . Impact Weapon . | . . . . Slashing Weapon . | . . . . Piercing Weapon . | . . . . Special Melee Weapon . | . . . . Unidentified Prototypes . | . . . . Parts Lost 7 | . 3 . 4 Power 2 | . 1 . 1 Propulsion . | . . . . Utility 1 | . . . 1 Weapon 4 | . 2 . 2 Highest Loss Streak 3 | . 3 . 3 To Critical Strikes . | . . . . Average Slot Usage (%) 94 | . 90 99 100 Engine 13 | . 13 14 14 Treads 11 | . . 25 . Leg 16 | . 28 1 28 Device 10 | . 6 14 14 Storage 14 | . 14 14 14 Energy Gun 14 | . 13 16 14 Energy Cannon 9 | . 6 11 14 Ballistic Gun 3 | . 7 . . Naked Turns . | . . . . Heaviest Build 35 | 12 28 29 35 Greatest Support 40 | 20 20 40 30 Greatest Overweight (x) 1 | . 1 . 1 Average Overweight (x) . | . . . . Largest Inventory Capacity 15 | 8 15 15 15 Average Capacity 14 | 7 14 15 15 Most Carried 15 | 8 15 15 14 Average Carried 11 | 4 8 14 13 Final Capacity 15 | 8 15 15 15 Final Carried 15 | 4 15 14 12 Class Distribution -------------------- 98% | Mutant Dominant Class ---------------- Mutant | -10/Materials Mutant | -10/Mines Mutant | -10/Subcaves Resources | -11 -10 -10 -10 ----------- Run | Yrd Mat Min Sub Matter Collected 470 | 237 143 80 10 Remotely . | . . . . Salvage Created 699 | . 449 210 40 Parts 51 | . 30 17 4 Haulers Intercepted 2 | . 2 . . Recyclers Shooed 1 | . 1 . . Parts Field Recycled . | . . . . Retrieved Matter . | . . . . Parts Self-Destructed . | . . . . Prevented . | . . . . Kills | -11 -10 -10 -10 ------- Run | Yrd Mat Min Sub Combat Hostiles Destroyed 17 | . 7 9 1 Guns 10 | . 3 7 . Cannons 5 | . 3 2 . AOE 2 | . 1 . 1 Classes Destroyed 8 | . 7 . 1 Worker 1 | . 1 . . Builder 1 | . 1 . . Hauler 2 | . 2 . . Recycler 2 | . 1 1 . Watcher 1 | . 1 . . Swarmer 12 | . 3 9 . Grunt 4 | . 4 . . Subdweller 1 | . . . 1 Best Kill Streak 4 | . 4 4 1 Combat Bots Only 3 | . 3 3 1 Max Kills in Single Turn 3 | . 3 2 1 Gunslinging . | . . . . Exploded 1 | . 1 . 1 Melee . | . . . . Uniques/NPCs Destroyed . | . . . . Combat | -11 -10 -10 -10 -------- Run | Yrd Mat Min Sub Hostile Shots Fired 93 | . 33 45 15 Missed 28 | . 9 13 6 Damage Taken 987 | . 387 257 343 Core 269 | . 68 72 129 Absorbed by Shields . | . . . . Core Remaining (%) 100 | 100 . . . Volleys Fired 51 | . 29 14 8 Largest 2 | . 2 2 2 Hottest 100 | . 100 100 100 Shots Fired 102 | . 58 28 16 Gun 75 | . 46 21 8 Cannon 27 | . 12 7 8 Launcher . | . . . . Special . | . . . . Kinetic 17 | . 17 . . Thermal 53 | . 24 21 8 Explosive . | . . . . Electromagnetic 32 | . 17 7 8 Robot Hit Streak 13 | . 8 5 13 Robot Miss Streak 4 | . 2 4 2 Penetration Max . | . . . . Secondary Targets 1 | . . 1 . Max Gunslinging Chain 1 | . . 1 . Shots Hit Robots 65 | . 37 15 13 Core Hits 35 | . 22 10 3 Critical Kills . | . . . . Critical Parts Destroyed . | . . . . Critical Strikes . | . . . . Melee Attacks . | . . . . Impact . | . . . . Slashing . | . . . . Piercing . | . . . . Sneak Attacks . | . . . . Combat Hostiles . | . . . . Follow-up Attacks . | . . . . Damage Inflicted 1218 | . 745 240 233 Guns 555 | . 357 135 63 Cannons 368 | . 159 88 121 Explosions 261 | . 212 . 49 Melee . | . . . . Ramming 34 | . 17 17 . Kinetic 127 | . 127 . . Thermal 593 | . 244 179 170 Explosive 183 | . 183 . . Electromagnetic 281 | . 174 44 63 Impact . | . . . . Slashing . | . . . . Piercing . | . . . . Highest Corruption . | . . . . Average Corruption . | . . . . Corruption Purged . | . . . . Corruption Blocked . | . . . . Overload Shots . | . . . . Overflow Damage 59 | . 55 . 4 Projectiles . | . . . . Explosions 59 | . 55 . 4 Melee . | . . . . Knockbacks 1 | . 1 . . Impact 1 | . 1 . . Kinetic . | . . . . Secondary . | . . . . Self-Inflicted Damage 128 | . 83 . 45 Shots 3 | . 2 . 1 Rammed 3 | . . 3 . Targets Rammed 9 | . 6 3 . Kicked 6 | . 6 . . Crushed . | . . . . Highest Temperature 36 | . 36 . . Average Temperature 16 | . 16 . . Received Heat Transfer 192 | . 156 . 36 Siege Activations . | . . . . Robots Corrupted . | . . . . Combat Hostiles . | . . . . Parts Fried . | . . . . Impact Corruptions . | . . . . Robots Melted . | . . . . Combat Hostiles . | . . . . Parts Melted 3 | . 2 . 1 Heat Transferred 1102 | . 458 385 259 Parts Sabotaged . | . . . . Parts Stolen . | . . . . Parts Stripped . | . . . . Power Chain Reactions 2 | . 1 . 1 Alert | -11 -10 -10 -10 ------- Run | Yrd Mat Min Sub Peak Influence 194 | . 194 155 . Initial 57 | . . 57 . Average 74 | . 59 99 . Maximum Alert Level 1 | . 1 . . Low Security (%) 99 | 100 99 100 . Level 1 . | . . . . Level 2 . | . . . . Level 3 . | . . . . Level 4 . | . . . . Level 5 . | . . . . High Security . | . . . . Max Security . | . . . . Squads Dispatched 1 | . 1 . . Investigation 1 | . 1 . . Extermination . | . . . . Reinforcement . | . . . . Assault . | . . . . Garrison . | . . . . Intercept . | . . . . Searches Triggered . | . . . . Construction Impeded . | . . . . Haulers Reinforced . | . . . . Active Scanning Responses . | . . . . Cargo Convoy Interrupts . | . . . . Stealth | -11 -10 -10 -10 --------- Run | Yrd Mat Min Sub Distress Signals 2 | . 2 . . Communications Jammed . | . . . . Distress Signals . | . . . . Times Spotted 29 | . 17 9 3 Peak Tracking Total 5 | . 5 3 2 Tactical Retreats 3 | . 3 . . Traps | -11 -10 -10 -10 ------- Run | Yrd Mat Min Sub Traps Triggered 1 | . 1 . . Indirectly . | . . . . Trap Hack Attempts . | . . . . Triggered . | . . . . Disarmed . | . . . . Reprogrammed . | . . . . Reused . | . . . . Traps Extracted . | . . . . Installed . | . . . . Triggered . | . . . . Machines | -11 -10 -10 -10 ---------- Run | Yrd Mat Min Sub Machines Disabled 1 | . 1 . . Max in Single Turn 1 | . 1 . . Machines Repaired . | . . . . Machines Dismantled . | . . . . Machines Sabotaged . | . . . . Overloaded Fab Kills . | . . . . Hacking | -11 -10 -10 -10 --------- Run | Yrd Mat Min Sub Machines Accessed 3 | . 3 . . Terminals 3 | . 3 . . Fabricators . | . . . . Repair Stations . | . . . . Recycling Units . | . . . . Scanalyzers . | . . . . Garrison Access . | . . . . Total Hacks 10 | . 10 . . Successful 6 | . 6 . . Failed 4 | . 4 . . Catastrophic . | . . . . Database Lockouts . | . . . . Manual 3 | . 3 . . Terminals 10 | . 10 . . Fabricators . | . . . . Repair Stations . | . . . . Recycling Units . | . . . . Scanalyzers . | . . . . Garrison Access . | . . . . Terminal Hacks 6 | . 6 . . Record 1 | . 1 . . Prototype ID Bank 1 | . 1 . . Branch Access Points 1 | . 1 . . Emergency Access Points 1 | . 1 . . Zone Layout 2 | . 2 . . Fabricator Hacks . | . . . . Repair Station Hacks . | . . . . Recycling Unit Hacks . | . . . . Scanalyzer . | . . . . Garrison Access Hacks . | . . . . Unauthorized Hacks . | . . . . Terminals . | . . . . Fabricators . | . . . . Repair Stations . | . . . . Recycling Units . | . . . . Scanalyzers . | . . . . Garrison Access . | . . . . Data Cores Recovered . | . . . . Used . | . . . . Hacking Detections 2 | . 2 . . Full Trace Events 1 | . 1 . . Feedback Events . | . . . . Feedback Blocked . | . . . . Robot Schematics Acquired . | . . . . Robots Built . | . . . . Authchips . | . . . . Time . | . . . . Total Robot Build Rating . | . . . . Part Schematics Acquired . | . . . . Parts Built . | . . . . Authchips . | . . . . Time . | . . . . Total Part Build Rating . | . . . . Parts Repaired . | . . . . Time . | . . . . Parts Recycled . | . . . . Recycled Matter . | . . . . Retrieved Matter . | . . . . Retrieved Components . | . . . . Parts Scanalyzed . | . . . . Part Schematics Acquired . | . . . . Parts Damaged . | . . . . Bothacking | -11 -10 -10 -10 ------------ Run | Yrd Mat Min Sub Used RIF Installer . | . . . . Robots Hacked . | . . . . Non-combat . | . . . . Combat . | . . . . Robot Hacks Applied . | . . . . Relay Couplers Released . | . . . . Fabnet Peak Effective % . | . . . . Robots Rewired . | . . . . Allies Hacked . | . . . . Hacks Repelled . | . . . . Allies | -11 -10 -10 -10 -------- Run | Yrd Mat Min Sub Total Allies . | . . . . Largest Group . | . . . . Highest-Rated Group . | . . . . Highest-Rated Ally . | . . . . Total Orders . | . . . . Ally Attacks . | . . . . Total Damage . | . . . . Kills . | . . . . Allies Corrupted . | . . . . Allies Melted . | . . . . Intel | -11 -10 -10 -10 ------- Run | Yrd Mat Min Sub Robot Analysis Total . | . . . . Derelict Logs Recovered 1 | . . 1 . Drone Launches . | . . . . Drone Recoveries . | . . . . Exploration | -11 -10 -10 -10 ------------- Run | Yrd Mat Min Sub Turns Passed 1603 | 66 772 674 91 Spaces Moved 837 | 49 355 387 46 Core 10 | 10 . . . Treads 357 | . . 357 . Legs 470 | 39 355 30 46 Wheels . | . . . . Hover . | . . . . Flight . | . . . . Fastest Speed 50 | 50 120 120 120 Average Speed 161 | 105 176 156 139 Slowest Speed 190 | 120 190 160 190 Overloaded Moves . | . . . . Propulsion Burnouts . | . . . . Robots Hopped . | . . . . Cave-ins Triggered . | . . . . Exploration Rate (%) 34 | 4 62 67 5 Regions Visited 3 Branch Regions 2 Pre-discovered Areas 1 | . . 1 . Known Exits Taken 2 | . 1 1 . Unknown Exits Taken 1 | 1 . . . Scrap Searched 2 | . . 2 . Spaces Dug . | . . . . Terrain Destroyed 27 | . 25 . 2 Melee . | . . . . Projectile . | . . . . AOE 27 | . 25 . 2 Terrain Rammed . | . . . . Walls Destroyed . | . . . . Machines Disabled . | . . . . Actions | -11 -10 -10 -10 --------- Run | Yrd Mat Min Sub Total 981 | 62 436 425 58 Wait 22 | . 22 . . Move 834 | 48 354 386 46 Hop . | . . . . Pick Up 30 | 8 16 6 . Fast Attach 2 | 2 . . . Attach 12 | 4 4 2 2 Detach . | . . . . Swap 10 | . 4 6 . Drop 11 | . 1 8 2 Fire 51 | . 29 14 8 Melee . | . . . . Ram . | . . . . Kick 6 | . 6 . . Crush 3 | . . 3 . Escape Stasis . | . . . . Rewire . | . . . . Trap . | . . . . Miscellaneous . | . . . . Route ------- -11/Scrapyard -10/Materials (discovered 2 exits: [*Mat] / *Min) -10/Mines (discovered 3 exits: [*Mat x2] / *Sub) -10/Subcaves History --------- Turn | Location | Event 8 | -11/Scrapyard | Discovered new exit (range 16) 67 | -11/Scrapyard | Entered Materials 102 | -10/Materials | Identified exit to Mines 314 | -10/Materials | Build established: Mutant 467 | -10/Materials | Discovered new exit (range 14) 497 | -10/Materials | Lost 3 parts (1p2w) 839 | -10/Materials | Entered Mines 843 | -10/Mines | Met a Derelict bent on vengeance 919 | -10/Mines | Found a damaged Exp. Sensor Array with a note attached 922 | -10/Mines | Found Prototype Device 948 | -10/Mines | Discovered new exit (range 7) 1094 | -10/Mines | A weapon hastily lodged in a ceiling crevice suddenly fell to the ground 1136 | -10/Mines | Discovered new exit (range 6) 1167 | -10/Mines | Identified exit to Subcaves 1193 | -10/Mines | Learned location of Storage (-7) 1435 | -10/Mines | Core integrity fell below 50% 1513 | -10/Mines | Entered Subcaves 1600 | -10/Subcaves | Core integrity fell below 20% 1604 | -10/Subcaves | Destroyed by 7B-OKH(R) with Subdweller Shrapnel Launcher Last Messages --------------- GOAL=ESCAPE 01558_ 7M-DVI(R) destroyed. 01559_ CC-J9I(O) collects matter. 01564_ Subatomizers dissect the Sub. Laser. 01571_ Chain reaction triggered in Sub. Power Source. 01571_ Sub. Laser melted. 01571_ 7E-37H(R) destroyed. 01571_ Lgt. Ion Engine destroyed. 01571_ Destroyed Lgt. Ion Engine. 01579_ Subatomizers dissect the Sub. Laser. 01579_ Acquired 10 matter. 01592_ CC-J9I(O) collects matter. 01597_ CC-J9I(O) puts together Sub. Beam Cannon. 01600_ Subatomizers dissect the Disposable Heat Sink. 01602_ EM Pulse Gun destroyed. 01604_ Dropped Carbon-fiber Leg. 01604_ Imp. Heat Sink destroyed. 01604_ Beam Cannon destroyed. Map ----- +----------------------------------------------------+ | ????????????????????? ??????????????????? | | ????????????????????? ???????""??????#??? | | ???????????????????## ???????" "#??? ??? | | ????????????????##?? ????###"""### ??? | | ????????????????# ### ##??# "" ??? | | ????????"???????# ##?# #???? | | ??????? " ????## ??# #???? | | ???????? ???# #### ?????? | | ?????????? ###" ### ## #????????? | | ???????????# # " ## # #??????????? | | ???????????# #??????????? | | ???????????# #??????????? | | ???????????# #" R###### ##??????????? | | ???????????##?## #????#####???????????? | | ??????????? ??# #????????????????????? | | ???????????? ?## #????????????????????? | | ???????????? ?## #????????????????????? | | ?????????????&##; ##???????????????????? | | ????????????<#;; ;##??????????????????? | | ????????????# ; ] ##?????????????????? | | ????????????# #?????????????????? | | ????????????# ##?????????????????? | | ????????????# ##??????????????????? | | ????????????# #??????????????????? | | ????????????# #??????????????????? | | ????????????# @O #??????????????????? | | ????????????## = #??????????????????? | | ?????????????# ; #??????????????????? | | ?????????????## ;##???????##?????????? | | ??????????????#;; ##??### ##????????? | | ??????????????####### ### #????????? | | ????????????????????# #????????? | | ????????????????????# & % #????????? | | ????????????????????#"!*% ##????????? | | ????????????????????#"[&& ####?????????? | | ?????????????????? ##????????????? | | ????????????????# #?????????????? | | ????????????????# #?????????????? | | ????????????????# "### #?????????????? | | ????????????????#####"#?? ?????????????? | | ????????????????????## ?? ????????????? | | ?????????????????????? ?? # #???????????? | | ?????????????????????? ?? ## #???????????? | | ?????????????????????? ?? #? #???????????? | | ?????????????????????????" ?? ???????????? | | ?????????????????????????? ?? ???????????? | | ?????????????????????????? ???#??????????? | | ??????????????????????????%??????????????? | | ?????????????????????????????????????????? | | ?????????????????????????????????????????? | +----------------------------------------------------+ Best States ------------- Heat Dissipation 39 Energy Generation 18 Energy Capacity 150 Matter Stores 300 Matter Capacity 300 Sight Range 16 Terrain Scan Density 10 Evasion (%) 55 Recoil Reduction 2 Item Schematics ----------------- None Robot Schematics ------------------ None Fabricated ------------ Nothing Alien Tech Used ----------------- None Achievements -------------- None Challenges ------------ None Game ------ Seed CloakingMediumBrace Manual? 0 Play Time 00:18:19 Cumulative 8.5 hours Start 2024.05.14 @ 20:51:38 End 2024.05.14 @ 23:23:22 Sessions 3 Manual Loads 0 Difficulty Rogue Special Mode None Game No. 12 Rogue 12 Adventurer 0 Explorer 0 Win Type - Total 0 Types 0/0/0/0/0/0/0/0/0 Lore% 14 Gallery% 16 Achievement% 15 Wizard Run 0 Options --------- Layout 1 ASCII 0 Keyboard 0 Movement Mouse Keybinds 0 Fullscreen 1 Font 32/Terminus Map View 50x35 Zoom Use 0% Tactical HUD 1 Map Filters NONE Filters NONE Steam 1 RUN: c70d0000-e892-4295-9a1e-fcc8f9571243